fUSD/lending_fUSD_20250809
["ID","MTS","AMOUNT","RATE_DAILY","PERIOD"]
[378199342,1754779840712,-150.0,0.0002098,2]
[378199344,1754779840721,-150.0,0.0002098,2]
[378199346,1754779840730,-150.0,0.0002098,2]
[378199348,1754779840739,-150.0,0.0002098,2]
[378199350,1754779840748,-150.0,0.0002098,2]
[378199352,1754779840757,-150.0,0.0002098,2]
[378199354,1754779840766,-150.0,0.0002098,2]
[378199358,1754779840787,-150.0,0.00020986,4]
[378199360,1754779840804,-150.0,0.00020986,4]
[378199364,1754779840823,-150.0,0.00020986,4]
[378199367,1754779840842,-10000.0,0.00020988,2]
[378199369,1754779840856,-810.0,0.0002099,2]
[378199372,1754779840874,-956.0,0.0002099,2]
[378199375,1754779840893,-1250.0,0.0002099,2]
[378199378,1754779840910,-598.0,0.0002099,2]
[378199381,1754779840929,-959.0,0.0002099,2]
[378199384,1754779840950,-571.304,0.0002099,2]
[378199387,1754779840969,-2026.0,0.0002099,2]
[378199390,1754779840984,-893.0,0.0002099,2]
[378199392,1754779841002,-991.141,0.0002099,2]
[378199395,1754779841016,-6079.0,0.0002099,2]
[378199398,1754779841032,-4143.0,0.0002099,2]
[378199400,1754779841046,-11819.905,0.0002099,2]
[378199403,1754779841067,-716.0,0.0002099,2]
[378199406,1754779841082,-5846.86845164,0.00020992,2]
[378199409,1754779841097,-506.1,0.00020994,2]
[378199411,1754779841111,-1000.0,0.00020999,2]
[378199414,1754779841127,-1000.0,0.00020999,2]
[378199416,1754779841142,-1000.0,0.00020999,2]
[378199419,1754779841157,-1000.0,0.00020999,2]
[378199421,1754779841171,-1000.0,0.00020999,2]
[378199424,1754779841187,-1000.0,0.00020999,2]
[378199427,1754779841201,-1000.0,0.00020999,2]
[378199429,1754779841215,-504986.21491658,0.00021,2]
[378199431,1754779841230,-114686.34510249,0.00021,2]
[378199872,1754779845665,-2556.89657311,0.00021,2]
[378199874,1754779845675,-207337.74240818,0.00021,2]
[378199888,1754779845800,-5798.92422368,0.00021,2]
[378199911,1754779846011,513.0,0.00017222,2]
[378199914,1754779846031,-38552.93508328,0.00021,2]
[378199955,1754779846380,-500.0,0.0001929,2]
[378199957,1754779846390,-47.8517797,0.0001929,2]
[378199970,1754779846508,-365.04504281,0.0001929,2]
[378199972,1754779846519,-158.97693908,0.0001929,2]
[378200486,1754779994478,500.0,0.00017906,2]
[378200499,1754780536213,250.49,0.00013699,2]
[378200607,1754780950293,-250.0,0.00018104,2]
[378200608,1754780952269,-13.94250375,0.00018104,2]
[378200619,1754781031471,-888.82076337,0.00018196,2]
[378200620,1754781031613,-160.57414127,0.00018196,2]
[378200621,1754781031622,-687.848654,0.00018204,2]
[378200622,1754781031631,-516.0,0.00018296,2]
[378200623,1754781031643,-114.83766701,0.00018863,2]
[378200624,1754781031667,-272.14233299,0.00018863,2]
[378200625,1754781031676,-59.74201233,0.00018888,2]
[378200626,1754781031872,-92.30008533,0.00018888,2]
[378200627,1754781031881,-150.0,0.00018888,2]
[378200628,1754781031891,-150.0,0.00018888,2]
[378200629,1754781031900,-150.0,0.00018888,2]
[378200630,1754781031909,-150.0,0.00018888,2]
[378200631,1754781031919,-150.0,0.00018888,2]
[378200632,1754781031928,-150.0,0.00018888,2]
[378200633,1754781031939,-250.0,0.00018889,2]
[378200634,1754781031948,-300.0,0.0001889,2]
[378200635,1754781031957,-1068.1,0.00018891,2]
[378200636,1754781031966,-176.57,0.00018935,2]
[378200637,1754781031976,-300.0,0.00018969,2]
[378200638,1754781031985,-1000.0,0.0001897,2]
[378200639,1754781031994,-307.39,0.00019019,2]
[378200640,1754781032004,-960.38,0.00019178,2]
[378200641,1754781032014,-303.72,0.00019189,2]
[378200642,1754781032023,-300.9,0.0001919,2]
[378200643,1754781032032,-303.79,0.0001919,2]
[378200644,1754781032041,-303.21,0.0001919,2]
[378200645,1754781032050,-301.73,0.0001919,2]
[378200646,1754781032060,-305.29,0.0001919,2]
[378200647,1754781032069,-301.85,0.0001919,2]
[378200648,1754781032079,-302.22,0.0001919,2]
[378200649,1754781032088,-300.58,0.0001919,2]
[378200650,1754781032097,-304.43,0.0001919,2]
[378200651,1754781032106,-305.12,0.0001919,2]
[378200652,1754781032115,-2714.1,0.00019193,2]
[378200653,1754781032125,-301.35,0.0001929,2]
[378200654,1754781032134,-304.83,0.0001929,2]
[378200655,1754781032143,-209.57,0.00019292,2]
[378200656,1754781032153,-209.57,0.00019302,2]
[378200657,1754781032163,-209.57,0.00019312,2]
[378200658,1754781032172,-209.57,0.00019322,2]
[378200659,1754781032182,-209.57,0.00019332,2]
[378200660,1754781032191,-208.56,0.00019333,2]
[378200661,1754781032200,-209.57,0.00019343,2]
[378200663,1754781032209,-209.57,0.00019353,2]
[378200665,1754781032219,-209.57,0.00019363,2]
[378200667,1754781032228,-209.57,0.00019373,2]
[378200669,1754781032237,-850.0,0.00019381,2]
[378200671,1754781032247,-170.0,0.00019381,7]
[378200673,1754781032256,-209.57,0.00019383,2]
[378200675,1754781032265,-209.57,0.00019393,2]
[378200677,1754781032274,-209.57,0.00019404,2]
[378200679,1754781032283,-1958.76,0.0001941,2]
[378200680,1754781032293,-209.57,0.00019414,2]
[378200681,1754781032302,-209.57,0.00019424,2]
[378200682,1754781032311,-209.57,0.00019434,2]
[378200683,1754781032320,-209.57,0.00019444,2]
[378200684,1754781032329,-209.57,0.00019454,2]
[378200685,1754781032338,-209.57,0.00019465,2]
[378200686,1754781032348,-209.57,0.00019475,2]
[378200687,1754781032357,-209.57,0.00019485,2]
[378200688,1754781032366,-1082.93,0.0001953,2]
[378200689,1754781032375,-500.0,0.00019552,2]
[378200690,1754781032385,-151.0,0.00019552,2]
[378200691,1754781032394,-151.0,0.00019552,2]
[378200692,1754781032404,-151.0,0.00019552,2]
[378200693,1754781032413,-151.0,0.00019552,2]
[378200694,1754781032423,-151.0,0.00019552,2]
[378200695,1754781032433,-151.0,0.00019552,2]
[378200696,1754781032442,-151.0,0.00019552,2]
[378200697,1754781032452,-151.0,0.00019552,2]
[378200698,1754781032461,-151.0,0.00019552,2]
[378200699,1754781032470,-151.0,0.00019552,2]
[378200700,1754781032479,-534.05320587,0.00019552,2]
[378200701,1754781032488,-500.0,0.00019563,2]
[378200702,1754781032722,-500.0,0.00019563,2]
[378200703,1754781032737,-500.0,0.00019563,2]
[378200704,1754781032747,-500.0,0.00019563,2]
[378200705,1754781032759,-341.02306092,0.00019563,2]
[378200706,1754781032769,-500.0,0.00019563,2]
[378200707,1754781032779,-453.97239046,0.00019563,2]
[378200708,1754781032788,-301.99999952,0.00019563,2]
[378200709,1754781032797,-500.0,0.00019563,2]
[378200710,1754781032806,-500.0,0.00019563,2]
[378200711,1754781032816,-499.99999999,0.00019563,2]
[378200712,1754781032826,-6251.06688863,0.00019564,2]
[378200713,1754781032851,-1462.71725738,0.00019564,2]
[378200714,1754781032866,-12296.53585399,0.00019564,2]
[378200715,1754781032875,-194.39,0.00019585,2]
[378200716,1754781032885,-180.97,0.00019588,2]
[378200717,1754781032894,-600.0,0.00019588,2]
[378200718,1754781032903,-600.0,0.00019588,2]
[378200719,1754781032912,-600.0,0.00019588,2]
[378200720,1754781032921,-191.16,0.00019588,2]
[378200721,1754781032931,-164.01,0.00019605,2]
[378200722,1754781032941,-3441.23,0.00019623,2]
[378200723,1754781032950,-809.07549437,0.00019696,2]
[378200725,1754781037720,-150.0,0.00018908,2]
[378200726,1754781037730,-564.02199562,0.00019689,3]
[378200893,1754781039569,-323.97800438,0.00019689,3]
[378200895,1754781039579,-5726.48527502,0.00019696,2]
[378200897,1754781039589,-5679.45,0.00019706,2]
[378200899,1754781039599,-180.3,0.00019922,2]
[378200901,1754781039609,-150.0,0.00019922,2]
[378200903,1754781039619,-151.0,0.00019949,2]
[378200905,1754781039628,-151.0,0.00019949,2]
[378200907,1754781039638,-359.76179104,0.00019949,2]
[378200909,1754781039648,-151.0,0.00019949,2]
[378200911,1754781039658,-151.0,0.00019949,2]
[378200913,1754781039667,-160.0,0.00019949,2]
[378200915,1754781039677,-4662.51281194,0.00019949,2]
[378200917,1754781039686,-600.0,0.00019949,2]
[378200919,1754781039695,-239.84119403,0.00019949,2]
[378200921,1754781039705,-660.51,0.0001998,2]
[378200923,1754781039715,-4835.02578598,0.00020004,2]
[378200925,1754781039724,-500.0,0.00020025,4]
[378200927,1754781039734,-500.0,0.00020025,2]
[378200929,1754781039743,-388.63,0.0002004,2]
[378200931,1754781039752,-150.0,0.00020054,2]
[378200933,1754781039762,-150.0,0.00020054,2]
[378200935,1754781039771,-150.0,0.00020054,2]
[378200937,1754781039781,-150.0,0.00020054,2]
[378200939,1754781039791,-150.0,0.00020054,2]
[378200941,1754781039800,-150.0,0.00020054,2]
[378200943,1754781039810,-5013.92174006,0.00020059,2]
[378200945,1754781039819,-5199.43684444,0.00020114,2]
[378200947,1754781039829,-5391.81600769,0.00020169,2]
[378200949,1754781039839,-250.49,0.00020187,2]
[378200951,1754781039848,-888.0,0.00020189,3]
[378200953,1754781039857,-2870.3850715,0.00020224,2]
[378200955,1754781039866,-893.0,0.0002027,2]
[378200957,1754781039876,-1171.0,0.0002027,2]
[378200959,1754781039885,-250.0,0.00020328,2]
[378200961,1754781039894,-1258.41,0.00020341,2]
[378200963,1754781039904,-299.44415036,0.0002037,2]
[378200965,1754781039914,-516.0,0.00020381,4]
[378200967,1754781039923,-150.0,0.00020582,2]
[378200969,1754781039932,-150.0,0.00020582,2]
[378200971,1754781039942,-960.38,0.00020631,2]
[378200973,1754781039952,-12482.224,0.0002071,2]
[378200975,1754781039961,-6079.0,0.0002071,2]
[378200977,1754781039970,-4143.0,0.0002071,2]
[378200979,1754781039979,-716.0,0.0002071,2]
[378200981,1754781039989,-698.0609,0.0002079,2]
[378200983,1754781039999,-151.69358345,0.000208,2]
[378200985,1754781040008,-151.69358345,0.0002082,2]
[378200987,1754781040017,-151.69358345,0.0002084,2]
[378200989,1754781040028,-173.481,0.00020844,2]
[378200991,1754781040037,-2348.08,0.00020844,2]
[378200993,1754781040046,-150.0,0.00020856,2]
[378200995,1754781040055,-151.93962822,0.00020856,2]
[378200997,1754781040065,-151.69358345,0.0002086,2]
[378200999,1754781040074,-168.0,0.00020872,2]
[378201001,1754781040083,-151.69358345,0.0002088,2]
[378201003,1754781040094,-8040.2651,0.0002089,2]
[378201005,1754781040103,-1055.57450687,0.000209,2]
[378201007,1754781040112,-5000.0,0.000209,2]
[378201009,1754781040122,-567.0819,0.000209,2]
[378201011,1754781040132,-164.19817069,0.000209,2]
[378201013,1754781040141,-25794.3183,0.000209,3]
[378201015,1754781040151,-159.92854946,0.000209,2]
[378201017,1754781040161,-150.0,0.000209,2]
[378201019,1754781040170,-2645.37003093,0.000209,2]
[378201021,1754781040180,-151.69358345,0.000209,2]
[378201023,1754781040189,-1055.57450687,0.000209,2]
[378201025,1754781040199,-500.0,0.00020973,2]
[378201027,1754781040208,-200.59887983,0.00020973,2]
[378201029,1754781040217,-500.0,0.00020973,2]
[378201031,1754781040227,-500.0,0.00020973,2]
[378201033,1754781040236,-164.6238641,0.00020973,2]
[378201035,1754781040246,-500.0,0.00020973,2]
[378201037,1754781040255,-150.0,0.00020986,4]
[378201039,1754781040265,-150.0,0.0002099,2]
[378201041,1754781040274,-151.0,0.0002099,2]
[378201043,1754781040283,-154.0,0.0002099,2]
[378201045,1754781040292,-956.0,0.0002099,2]
[378201047,1754781040302,-810.0,0.0002099,2]
[378201049,1754781040311,-1250.0,0.0002099,2]
[378201051,1754781040321,-2026.0,0.0002099,2]
[378201053,1754781040330,-571.304,0.0002099,2]
[378201055,1754781040339,-598.0,0.0002099,2]
[378201057,1754781040349,-959.0,0.0002099,2]
[378201059,1754781040359,-991.141,0.0002099,2]
[378201061,1754781040368,-5846.86845164,0.00020992,2]
[378201063,1754781040378,-1000.0,0.00020999,2]
[378201065,1754781040388,-1000.0,0.00020999,2]
[378201067,1754781040397,-1000.0,0.00020999,2]
[378201069,1754781040407,-1000.0,0.00020999,2]
[378201071,1754781040416,-1000.0,0.00020999,2]
[378201073,1754781040426,-176.35680746,0.00020999,2]
[378201075,1754781040435,-594.52,0.00020999,2]
[378201077,1754781040445,-159.67037421,0.00020999,2]
[378201079,1754781040455,-507164.90658063,0.00021,2]
[378201081,1754781040465,-2109.71000611,0.00021,2]
[378201083,1754781040474,-24710.53826241,0.00021,2]
[378201088,1754781040508,-8755.61501072,0.00021,2]
[378201090,1754781040519,-8947.21879473,0.00021,2]
[378201092,1754781040531,-8943.78386462,0.00021,2]
[378201094,1754781040543,-9077.54866152,0.00021,2]
[378201097,1754781040554,-8943.84023489,0.00021,2]
[378201100,1754781040581,-6331.9409461,0.00021,2]
[378201326,1754781042844,-888.0,0.00019688,3]
[378201328,1754781042853,-531.12381776,0.00021,2]
[378201330,1754781042864,-3822.403632,0.00021,2]
[378201536,1754781046157,-500.0,0.00019563,2]
[378201537,1754781046167,-592.75993274,0.00019563,2]
[378201538,1754781046177,-888.0,0.00020188,3]
[378201539,1754781046187,-2602.05085756,0.00021,2]
[378201558,1754781052870,1264.09537555,0.0002,10]
[378201595,1754781209023,1500.0,0.00018006,2]
[378201616,1754781263986,-193.03359436,0.00018104,2]
[378201617,1754781265529,-123.76840564,0.00018104,2]
[378201618,1754781265553,-69.61229601,0.00018104,2]
[378201619,1754781267728,-188.715941,0.00018104,2]
[378201622,1754781271800,-189.8720301,0.00018104,2]
[378201624,1754781278436,-159.08473289,0.00018104,2]
[378201654,1754781524630,254.78,0.00013699,2]
[378201706,1754781914604,259.45659504,0.000121,30]
[378201708,1754781925421,673.40097598,0.000175,2]
[378201717,1754782056962,1667.87445474,0.00018,2]
[378201720,1754782116012,60681.90646397,0.000151,2]
[378201735,1754782231720,-684.730044,0.00018272,2]
[378201737,1754782231998,-151.0,0.00018315,2]
[378201738,1754782232009,-151.0,0.00018315,2]
[378201739,1754782232019,-151.0,0.00018315,2]
[378201740,1754782232031,-151.0,0.00018315,2]
[378201741,1754782232040,-371.93979565,0.00018364,2]
[378201742,1754782232051,-828.06020435,0.00018364,2]
[378201743,1754782232060,-151.0,0.00018365,2]
[378201744,1754782232071,-151.0,0.00018365,2]
[378201746,1754782232080,-97.98998216,0.00018365,2]
[378201747,1754782232105,-53.01001784,0.00018365,2]
[378201748,1754782232114,-151.0,0.00018365,2]
[378201750,1754782232125,-151.0,0.00018365,2]
[378201752,1754782232134,-459.63178788,0.00018369,2]
[378201755,1754782232153,-426.84093237,0.00018369,2]
[378201757,1754782232164,-393.83003186,0.00018369,2]
[378201759,1754782232175,-611.02421895,0.00018369,2]
[378201762,1754782232186,-862.79542914,0.00018369,2]
[378201772,1754782232274,-1452.80116888,0.00018369,2]
[378201776,1754782232297,-253.69422212,0.00018369,2]
[378201778,1754782232308,-10672.0722088,0.00018369,2]
[378201780,1754782232317,-212.92,0.00018396,2]
[378201782,1754782232326,-511.0,0.00018466,2]
[378201784,1754782232335,-1264.09537555,0.0001863,7]
[378201786,1754782232344,-6152.74377707,0.0001863,7]
[378201788,1754782232354,-1998.5574549,0.0001863,7]
[378201790,1754782232363,-330.67125391,0.000189,2]
[378201792,1754782232373,-6989.7735896,0.000189,2]
[378201794,1754782232382,-170.8436734,0.00018972,2]
[378201796,1754782232392,-328.2191545,0.00018972,2]
[378201798,1754782232401,-200.59887983,0.00018973,2]
[378201800,1754782232410,-500.0,0.00018973,2]
[378201802,1754782232419,-500.0,0.00018973,2]
[378201804,1754782232428,-500.0,0.00018973,2]
[378201806,1754782232437,-164.6238641,0.00018973,2]
[378201808,1754782232446,-500.0,0.00018973,2]
[378201810,1754782232455,-2812.16604056,0.00018978,2]
[378201812,1754782232464,-230.6100583,0.00018999,2]
[378201814,1754782232473,-159832.92626948,0.00019,2]
[378201816,1754782232489,-1049.79852092,0.00019,2]
[378201821,1754782232522,-451215.97718252,0.00019,2]
[378201823,1754782232531,-333.99016415,0.00019,2]
[378201825,1754782232542,-129703.60155563,0.00019,2]
[378201827,1754782232552,-6989.77358953,0.00019122,2]
[378201829,1754782232561,-180.3,0.00019169,2]
[378201831,1754782232570,-975.29,0.00019178,2]
[378201833,1754782232579,-330.67125386,0.00019186,2]
[378201835,1754782232590,-2812.16604056,0.00019192,2]
[378201837,1754782232599,-250.0,0.00019222,2]
[378201839,1754782232608,-150.0,0.00019242,2]
[378201841,1754782232617,-1000.0,0.00019325,2]
[378201843,1754782232626,-6989.77358953,0.00019344,2]
[378201845,1754782232635,-2812.16604056,0.00019405,2]
[378201848,1754782232645,-779.52,0.00019412,2]
[378201849,1754782232655,-386.42,0.00019418,2]
[378201852,1754782232664,-3177.38,0.00019419,2]
[378201853,1754782232673,-330.67125386,0.00019471,2]
[378201856,1754782232683,-600.0,0.00019519,2]
[378201858,1754782232692,-600.0,0.00019519,2]
[378201860,1754782232702,-600.0,0.00019519,2]
[378201862,1754782232711,-192.4,0.00019519,2]
[378201864,1754782232720,-934.50260251,0.00019521,2]
[378201866,1754782232729,-6989.77358953,0.00019567,2]
[378201868,1754782232738,-2812.16604056,0.00019619,2]
[378201870,1754782232747,-170.0,0.0001967,7]
[378201872,1754782232757,-388.63,0.00019688,2]
[378201874,1754782232766,-162.26,0.00019703,2]
[378201876,1754782232776,-4674.81,0.00019704,2]
[378201878,1754782232785,-162.26,0.00019714,2]
[378201880,1754782232795,-278.56,0.00019719,2]
[378201882,1754782232804,-162.26,0.00019724,2]
[378201884,1754782232814,-162.26,0.00019734,2]
[378201886,1754782232823,-162.26,0.00019745,2]
[378201888,1754782232833,-162.26,0.00019755,2]
[378201890,1754782232842,-330.67125386,0.00019757,2]
[378201892,1754782232854,-162.26,0.00019766,2]
[378201894,1754782232863,-162.26,0.00019776,2]
[378201896,1754782232872,-162.26,0.00019786,2]
[378201898,1754782232881,-194.38,0.00019787,2]
[378201900,1754782232891,-162.26,0.00019797,2]
[378201902,1754782232900,-162.26,0.00019807,2]
[378201904,1754782232912,-162.26,0.00019817,2]
[378201906,1754782232922,-162.26,0.00019828,2]
[378201908,1754782232931,-2812.16604056,0.00019832,2]
[378201910,1754782232940,-162.26,0.00019838,2]
[378201912,1754782232949,-162.26,0.00019849,2]
[378201914,1754782232960,-162.26,0.00019859,2]
[378201916,1754782232969,-162.26,0.00019869,2]
[378201918,1754782232979,-162.26,0.0001988,2]
[378201920,1754782232989,-162.26,0.0001989,2]
[378201922,1754782232998,-204.79901954,0.000199,2]
[378201924,1754782233007,-162.26,0.000199,2]
[378201926,1754782233016,-4662.51281194,0.00019949,2]
[378201928,1754782233025,-239.84119403,0.00019949,2]
[378201930,1754782233035,-460.01,0.0001998,2]
[378201931,1754782233044,-226.27,0.0001998,2]
[378201933,1754782233054,-660.51,0.0001998,2]
[378201935,1754782233063,-241.5032586,0.00019989,2]
[378201937,1754782233072,-507164.90658063,0.00019999,2]
[378201940,1754782233082,-6534.38103683,0.00019999,2]
[378201942,1754782233092,-1000.0,0.0002,2]
[378201944,1754782233101,-427.31516965,0.0002,30]
[378201946,1754782233111,-13055.56125933,0.0002,2]
[378201948,1754782233120,-4835.02578598,0.00020004,2]
[378201950,1754782233130,-330.67125386,0.00020043,2]
[378201952,1754782233140,-2812.16604056,0.00020046,2]
[378201954,1754782233151,-5013.92174006,0.00020059,2]
[378201956,1754782233160,-150.0,0.00020098,2]
[378201958,1754782233170,-150.0,0.00020098,2]
[378201959,1754782233179,-151.13119665,0.00020098,2]
[378201960,1754782233188,-150.0,0.00020098,2]
[378201962,1754782233198,-150.0,0.00020098,2]
[378201964,1754782233207,-150.0,0.00020098,2]
[378201966,1754782233217,-150.0,0.00020098,2]
[378201968,1754782233226,-200.0,0.00020098,2]
[378201970,1754782233235,-150.0,0.00020098,2]
[378201972,1754782233244,-359.76179104,0.00020098,2]
[378201974,1754782233254,-600.0,0.00020098,2]
[378201976,1754782233263,-160.0,0.00020098,2]
[378201978,1754782233273,-151.0,0.00020098,2]
[378201980,1754782233282,-151.0,0.00020098,2]
[378201982,1754782233291,-151.0,0.00020098,2]
[378201984,1754782233300,-151.0,0.00020098,2]
[378201986,1754782233310,-151.0,0.00020098,2]
[378201988,1754782233319,-151.0,0.00020098,2]
[378201990,1754782233329,-151.0,0.00020098,2]
[378201993,1754782233339,-151.0,0.00020098,2]
[378201995,1754782233348,-151.0,0.00020098,2]
[378201997,1754782233358,-151.0,0.00020098,2]
[378201999,1754782233367,-151.0,0.00020098,2]
[378202001,1754782233376,-151.0,0.00020098,2]
[378202002,1754782233386,-151.0,0.00020098,2]
[378202004,1754782233395,-151.0,0.00020098,2]
[378202006,1754782233405,-151.0,0.00020098,2]
[378202009,1754782233415,-151.0,0.00020098,2]
[378202011,1754782233424,-151.0,0.00020098,2]
[378202013,1754782233434,-250.0,0.00020099,2]
[378202015,1754782233443,-300.0,0.00020099,2]
[378202017,1754782233453,-5199.43684444,0.00020114,2]
[378202019,1754782233462,-1200.0,0.00020127,2]
[378202021,1754782233472,-5391.81600769,0.00020169,2]
[378202023,1754782233481,-254.78,0.00020187,2]
[378202024,1754782233490,-5726.48527502,0.00020198,2]
[378202027,1754782233500,-500.0,0.000202,4]
[378202028,1754782233509,-500.0,0.000202,2]
[378202031,1754782233519,-204.79901949,0.0002022,2]
[378202032,1754782233529,-5591.31319997,0.00020224,2]
[378202034,1754782233538,-2812.16604056,0.00020259,2]
[378202037,1754782233548,-5108.62885459,0.00020279,2]
[378202039,1754782233558,-330.67125386,0.00020329,2]
[378202041,1754782233567,-299.44415036,0.0002037,2]
[378202042,1754782233577,-150.0,0.00020372,2]
[378202045,1754782233587,-150.0,0.00020372,2]
[378202046,1754782233596,-167.05,0.00020399,2]
[378202049,1754782233605,-511.0,0.00020444,4]
[378202050,1754782233615,-2812.16604056,0.00020473,2]
[378202053,1754782233624,-194.74,0.00020496,2]
[378202055,1754782233633,-194.38,0.00020529,2]
[378202057,1754782233642,-330.67125386,0.00020614,2]
[378202058,1754782233652,-975.29,0.00020633,2]
[378202061,1754782233662,-150.0,0.00020639,2]
[378202063,1754782233671,-150.0,0.00020646,2]
[378202065,1754782233680,-600.0,0.00020646,2]
[378202066,1754782233690,-2812.16604056,0.00020686,2]
[378202068,1754782233699,-212.92,0.00020695,2]
[378202070,1754782233708,-793.06,0.000207,2]
[378202073,1754782233718,-278.56,0.00020705,2]
[378202074,1754782233728,-150.0,0.00020732,2]
[378202077,1754782233738,-153.26032952,0.00020732,2]
[378202079,1754782233747,-150.0,0.00020732,2]
[378202081,1754782233757,-150.0,0.00020765,2]
[378202082,1754782233766,-150.0,0.00020766,2]
[378202085,1754782233776,-168.0,0.0002077,2]
[378202087,1754782233785,-150.0,0.00020774,2]
[378202088,1754782233795,-2376.15624,0.0002079,2]
[378202091,1754782233804,-150.0,0.00020804,2]
[378202093,1754782233814,-150.0,0.00020808,2]
[378202094,1754782233823,-150.0,0.00020821,2]
[378202097,1754782233833,-179.626,0.00020822,2]
[378202099,1754782233843,-2884.3,0.00020822,2]
[378202100,1754782233854,-150.0,0.00020831,2]
[378202103,1754782233864,-150.0,0.00020838,2]
[378202105,1754782233873,-150.0,0.00020842,2]
[378202107,1754782233883,-150.0,0.00020843,2]
[378202109,1754782233892,-150.0,0.00020846,2]
[378202110,1754782233901,-150.0,0.00020883,2]
[378202113,1754782233915,-1486.14901373,0.0002089,2]
[378202114,1754782233924,-5000.0,0.00020892,2]
[378202117,1754782233935,-1486.14901374,0.00020892,2]
[378202119,1754782233944,-150.0,0.00020894,2]
[378202121,1754782233954,-2000.0,0.00020895,2]
[378202123,1754782233964,-2000.0,0.00020895,2]
[378202125,1754782233974,-2815.08517591,0.00020895,2]
[378202126,1754782233984,-150.0,0.00020896,2]
[378202129,1754782233993,-168.0,0.00020896,2]
[378202130,1754782234002,-2151.6508,0.000209,2]
[378202132,1754782234011,-25143.8119,0.000209,2]
[378202135,1754782234021,-1000.0,0.000209,2]
[378202137,1754782234030,-1783.0819,0.000209,2]
[378202139,1754782234040,-2812.16604056,0.000209,2]
[378202141,1754782234049,-330.67125386,0.000209,2]
[378202143,1754782234058,-8838.48860582,0.000209,2]
[378202145,1754782234068,-150.0,0.00020908,2]
[378202147,1754782234078,-150.0,0.00020913,2]
[378202148,1754782234087,-150.0,0.0002092,2]
[378202149,1754782234097,-150.0,0.00020924,2]
[378202151,1754782234107,-150.0,0.00020926,2]
[378202153,1754782234116,-150.0,0.00020929,2]
[378202155,1754782234126,-168.0,0.00020941,2]
[378202157,1754782234135,-168.0,0.00020942,2]
[378202159,1754782234144,-1591.36,0.00020959,2]
[378202161,1754782234154,-500.0,0.00020973,2]
[378202163,1754782234164,-500.0,0.00020973,2]
[378202165,1754782234174,-500.0,0.00020973,2]
[378202167,1754782234183,-501.82236109,0.00020973,2]
[378202169,1754782234192,-500.0,0.00020973,2]
[378202171,1754782234201,-500.0,0.00020973,2]
[378202173,1754782234211,-500.0,0.00020973,2]
[378202175,1754782234220,-500.0,0.00020973,2]
[378202177,1754782234230,-500.0,0.00020973,2]
[378202178,1754782234239,-500.0,0.00020973,2]
[378202179,1754782234249,-500.0,0.00020973,2]
[378202180,1754782234259,-500.0,0.00020973,2]
[378202181,1754782234268,-150.0,0.00020979,2]
[378202182,1754782234277,-329.11494351,0.0002098,2]
[378202183,1754782234287,-419.46022211,0.00020981,2]
[378202184,1754782234296,-509.80550072,0.00020983,2]
[378202185,1754782234305,-600.15077933,0.00020984,2]
[378202186,1754782234314,-690.49605794,0.00020985,2]
[378202187,1754782234324,-780.84133655,0.00020986,2]
[378202188,1754782234333,-10000.0,0.00020988,2]
[378202189,1754782234343,-871.18661516,0.00020988,2]